bitfinex-derivatives/quotes_BTCF0:USTF0_20241008
["timestamp","ask_amount","ask_price","bid_price","bid_amount"]
[1728423375608,0.00240205,62468.0,62464.0,0.88237937]
[1728423375807,0.06240205,62468.0,62467.0,0.080086]
[1728423376007,0.06240205,62468.0,62467.0,0.30885554]
[1728423376318,0.06240205,62468.0,62467.0,0.080086]
[1728423376811,0.06540205,62468.0,62467.0,0.440886]
[1728423377516,0.00840205,62468.0,62467.0,0.440886]
[1728423378916,0.01040205,62468.0,62467.0,0.440886]
[1728423380618,0.01040205,62468.0,62467.0,0.080086]
[1728423383315,0.01040205,62468.0,62467.0,0.18377485]
[1728423383519,0.01040205,62468.0,62467.0,0.54457485]
[1728423383916,0.01040205,62468.0,62467.0,0.18377485]
[1728423384112,0.01040205,62468.0,62467.0,0.54457485]
[1728423385720,0.080081,62471.0,62470.0,0.080082]
[1728423385919,0.190081,62471.0,62470.0,0.15972215]
[1728423386119,0.190081,62471.0,62470.0,0.26340561]
[1728423386714,0.190081,62471.0,62470.0,0.26740561]
[1728423386917,0.190081,62471.0,62470.0,0.34704628]
[1728423387124,0.190081,62471.0,62470.0,0.4506708]
[1728423387318,0.190081,62471.0,62470.0,0.63393511]
[1728423387727,0.190081,62471.0,62470.0,0.71357978]
[1728423388623,0.190081,62471.0,62470.0,0.79323724]
[1728423389027,0.190081,62471.0,62470.0,0.79823724]
[1728423389227,0.190081,62471.0,62470.0,0.90187677]
[1728423389421,0.190081,62471.0,62470.0,1.00549941]
[1728423389821,0.11,62471.0,62470.0,1.00549941]
[1728423390020,0.11,62471.0,62470.0,1.08516675]
[1728423390529,0.190081,62471.0,62470.0,0.98154223]
[1728423391422,0.190081,62471.0,62470.0,1.16488257]
[1728423400646,0.190081,62471.0,62470.0,0.69463173]
[1728423406444,0.190081,62471.0,62470.0,0.92254667]
[1728423407340,0.190081,62471.0,62470.0,0.92257033]
[1728423407936,0.670881,62471.0,62470.0,0.71853813]
[1728423408640,0.670881,62471.0,62470.0,0.81449525]
[1728423409544,0.310081,62471.0,62470.0,0.81449525]
[1728423410443,0.310081,62471.0,62470.0,0.79862013]
[1728423410742,0.310081,62471.0,62470.0,0.71853813]
[1728423411049,0.310081,62471.0,62470.0,0.1129884]
[1728423413554,0.310081,62471.0,62470.0,0.07295167]
[1728423416551,0.310081,62471.0,62470.0,0.15303367]
[1728423420452,0.310081,62471.0,62470.0,0.31726015]
[1728423421853,0.310081,62471.0,62470.0,0.31722928]
[1728423423660,0.190081,62471.0,62470.0,0.31722928]
[1728423427358,0.190081,62471.0,62470.0,0.31715978]
[1728423428458,0.190081,62471.0,62470.0,0.089082]
[1728423428658,0.190081,62471.0,62470.0,0.449882]
[1728423428867,0.190081,62471.0,62470.0,0.089082]
[1728423429161,0.190081,62471.0,62470.0,0.51384372]
[1728423430261,0.11,62471.0,62470.0,0.449882]
[1728423435567,0.11,62471.0,62470.0,0.67730399]
[1728423437266,0.11,62471.0,62470.0,0.67725824]
[1728423440276,0.0037,62478.0,62477.0,0.080073]
[1728423440577,0.00240135,62484.0,62483.0,0.080065]
[1728423440767,0.06240135,62484.0,62483.0,0.64030775]
[1728423440969,0.06240135,62484.0,62483.0,0.54459685]
[1728423441475,0.0037,62491.0,62490.0,0.080056]
[1728423441671,0.01,62491.0,62490.0,0.54388926]
[1728423443277,0.01,62491.0,62490.0,0.5204526]
[1728423443581,0.0037,62498.0,62490.0,0.58313581]
[1728423443787,0.11,62498.0,62497.0,0.440847]
[1728423443974,0.11,62498.0,62497.0,0.52040822]
[1728423444286,0.11,62498.0,62497.0,0.440847]
[1728423445273,0.113,62498.0,62497.0,0.440847]
[1728423445675,0.06,62498.0,62497.0,0.440847]
[1728423445875,0.066,62498.0,62497.0,0.440847]
[1728423446276,0.07,62498.0,62497.0,0.440847]
[1728423446481,0.07,62498.0,62497.0,0.50438934]
[1728423446684,0.03380073,62504.0,62497.0,1.77169206]
[1728423446685,0.00240073,62504.0,62497.0,1.77169206]
[1728423446898,0.0037,62508.0,62507.0,0.080035]
[1728423447188,0.12,62517.0,62507.0,0.080035]
[1728423447189,0.12466,62517.0,62511.0,0.080029]
[1728423447378,0.12,62514.0,62512.0,0.3608]
[1728423447680,0.22,62514.0,62512.0,0.3608]
[1728423448190,0.00096,62527.0,62513.0,0.12]
[1728423448485,0.12,62525.0,62520.0,0.440818]
[1728423448687,0.12,62525.0,62520.0,0.40838544]
[1728423448877,0.12,62525.0,62522.0,0.080014]
[1728423449283,0.12,62525.0,62523.0,0.080014]
[1728423449786,0.03611084,62526.0,62523.0,0.080014]
[1728423451390,0.001,62525.0,62523.0,0.080014]
[1728423451983,0.03711084,62526.0,62523.0,0.080014]
[1728423452180,0.001,62526.0,62525.0,0.12]
[1728423452381,0.0075,62541.0,62533.0,0.080001]
[1728423452382,0.079998,62536.0,62533.0,0.080001]
[1728423452784,0.079998,62536.0,62532.0,0.3608]
[1728423453080,0.079998,62536.0,62534.0,0.08]
[1728423453081,0.089998,62536.0,62534.0,0.08]
[1728423453475,0.079998,62536.0,62534.0,0.08]
[1728423453889,0.12,62535.0,62534.0,0.08]
[1728423456291,0.12,62535.0,62534.0,0.082]
[1728423456895,0.22,62535.0,62534.0,0.083]
[1728423457588,0.299999,62535.0,62534.0,0.083]
[1728423457783,0.12,62535.0,62534.0,0.083]
[1728423458383,0.02816062,62547.0,62534.0,0.4838]
[1728423458592,0.189985,62547.0,62546.0,0.3608]
[1728423460990,0.4705,62547.0,62546.0,0.12]
[1728423461191,0.0628,62549.0,62546.0,0.59601059]
[1728423461388,0.1828,62549.0,62546.0,0.12]
[1728423463297,0.262781,62549.0,62546.0,0.12]
[1728423465795,0.342763,62549.0,62546.0,0.03995793]
[1728423466293,0.262781,62549.0,62546.0,0.03995793]
[1728423466599,0.262781,62549.0,62546.0,0.11994193]
[1728423466989,0.079982,62548.0,62546.0,0.11994193]
[1728423467193,0.189982,62548.0,62546.0,0.11994193]
[1728423467388,0.189982,62548.0,62546.0,0.03995793]
[1728423467701,4e-05,62551.0,62548.0,0.079981]
[1728423468496,0.11004,62551.0,62548.0,0.079981]
[1728423468897,0.079981,62549.0,62548.0,0.079981]
[1728423469099,0.080019,62551.0,62548.0,0.079981]
[1728423469300,0.10004,62551.0,62548.0,0.083981]
[1728423469796,0.10004,62551.0,62548.0,0.086981]
[1728423470991,0.079981,62549.0,62548.0,0.086981]
[1728423471197,0.199981,62549.0,62548.0,0.086981]
[1728423471998,0.199981,62549.0,62548.0,0.083981]
[1728423472200,0.199981,62549.0,62548.0,0.088981]
[1728423472399,0.199981,62549.0,62548.0,0.090981]
[1728423473196,0.2425845,62549.0,62548.0,0.090981]
[1728423473596,0.199981,62549.0,62548.0,0.090981]
[1728423475509,0.043895,62555.0,62548.0,0.090981]
[1728423475713,0.053895,62555.0,62548.0,0.090981]
[1728423476008,0.079981,62549.0,62548.0,0.090981]
[1728423476195,0.179981,62549.0,62548.0,0.090981]
[1728423477009,0.179981,62549.0,62548.0,0.084981]
[1728423477610,0.179981,62549.0,62548.0,0.079981]
[1728423478508,0.179981,62549.0,62548.0,0.085981]
[1728423479601,0.179981,62549.0,62548.0,0.092981]
[1728423485612,0.04,62549.0,62548.0,0.092981]
[1728423487011,0.119981,62549.0,62548.0,0.092981]
[1728423489012,0.26953348,62549.0,62548.0,0.092981]
[1728423489210,0.26953348,62549.0,62548.0,0.04431892]
[1728423489513,0.49284064,62549.0,62548.0,0.013]
[1728423489709,0.079987,62544.0,62543.0,0.0112]
[1728423490013,0.079991,62541.0,62540.0,0.0112]
[1728423490212,0.079997,62536.0,62535.0,0.0037]
[1728423490417,0.08,62534.0,62533.0,0.00239815]
[1728423490612,0.08,62534.0,62528.0,0.0037]
[1728423490613,0.080006,62529.0,62528.0,0.0037]
[1728423490813,0.08001,62526.0,62525.0,0.0037]
[1728423491014,0.080017,62521.0,62520.0,0.0037]
[1728423491210,0.080017,62521.0,62518.0,0.08002]
[1728423491211,0.080019,62519.0,62518.0,0.08002]
[1728423491520,0.33714879,62519.0,62518.0,0.08002]
[1728423491705,0.33693886,62519.0,62518.0,0.08002]
[1728423491904,0.080022,62517.0,62516.0,0.440823]
[1728423492109,0.180022,62517.0,62516.0,0.3608]
[1728423492310,0.27280893,62517.0,62516.0,0.3608]
[1728423492712,0.080029,62511.0,62510.0,0.0037]
[1728423493027,0.080029,62511.0,62507.0,0.00239919]
[1728423493028,0.080033,62508.0,62507.0,0.08243319]
[1728423493217,0.17031405,62508.0,62507.0,0.00239919]
[1728423493418,0.27031405,62508.0,62507.0,0.00239919]
[1728423493722,1.34986522,62508.0,62507.0,0.00239919]
[1728423493922,0.080037,62505.0,62504.0,0.3608]
[1728423494110,0.2229731,62505.0,62504.0,0.3608]
[1728423494315,0.74986922,62505.0,62504.0,0.3608]
[1728423494514,0.7029331,62505.0,62504.0,0.3608]
[1728423494823,0.74683364,62505.0,62504.0,0.3608]
[1728423495321,0.74683997,62505.0,62504.0,0.3608]
[1728423495521,0.70017967,62505.0,62504.0,0.3608]
[1728423495718,0.70017967,62505.0,62504.0,0.3648]
[1728423495719,0.659997,62505.0,62504.0,0.3648]
[1728423496423,0.659997,62505.0,62504.0,0.3678]
[1728423497113,0.180037,62505.0,62504.0,0.3678]
[1728423512034,0.180037,62505.0,62504.0,0.007]
[1728423517035,0.180037,62505.0,62504.0,0.3678]
[1728423520431,0.22048639,62505.0,62504.0,0.3678]
[1728423525433,0.22063686,62505.0,62504.0,0.3678]
[1728423525840,0.180037,62505.0,62504.0,0.3678]
[1728423526442,0.180037,62505.0,62504.0,0.007]
[1728423526643,0.180037,62505.0,62504.0,0.3678]
[1728423531137,0.20827045,62505.0,62504.0,0.3678]
[1728423531534,0.20827045,62505.0,62504.0,0.007]
[1728423531942,0.20827045,62505.0,62504.0,0.3678]
[1728423536249,0.180037,62505.0,62504.0,0.3678]
[1728423540843,0.26779612,62505.0,62504.0,0.3678]
[1728423541047,0.26779612,62505.0,62504.0,0.007]
[1728423541348,0.26779612,62505.0,62504.0,0.3678]
[1728423541846,0.26779612,62505.0,62504.0,0.447838]
[1728423542255,0.22064654,62505.0,62504.0,0.447838]
[1728423543245,0.14060954,62505.0,62504.0,0.447838]
[1728423543841,0.14060954,62505.0,62504.0,0.927798]
[1728423544046,0.1,62505.0,62504.0,0.927798]
[1728423545152,0.1,62505.0,62504.0,1.288598]
[1728423548052,0.1,62505.0,62504.0,0.808638]
[1728423548856,0.1,62505.0,62504.0,0.9910955]
[1728423550156,0.180037,62505.0,62504.0,0.9910955]
[1728423550460,0.180037,62505.0,62504.0,0.808638]
[1728423552249,0.080037,62505.0,62504.0,1.288598]
[1728423554859,0.080037,62505.0,62504.0,0.808638]
[1728423556753,0.0074,62511.0,62504.0,1.888598]
[1728423556958,0.080029,62511.0,62510.0,0.440828]
[1728423557154,0.12088519,62511.0,62510.0,0.440828]
[1728423558955,0.12388519,62511.0,62510.0,0.440828]
[1728423559154,0.12588519,62511.0,62510.0,0.440828]
[1728423561464,0.12388519,62511.0,62510.0,0.440828]
[1728423561654,0.12288519,62511.0,62510.0,0.440828]
[1728423562459,0.12188519,62511.0,62510.0,0.47011183]
[1728423563856,0.081029,62511.0,62510.0,0.47011183]
[1728423567471,0.081029,62511.0,62510.0,0.40271183]
[1728423567858,0.081029,62511.0,62510.0,0.10931183]
[1728423568082,0.081029,62511.0,62510.0,0.83091183]
[1728423568361,0.081029,62511.0,62510.0,0.89464861]
[1728423570568,0.081029,62511.0,62510.0,0.83091183]
[1728423572569,0.081029,62511.0,62510.0,0.47011183]
[1728423575673,0.081029,62511.0,62510.0,0.10931183]
[1728423576076,0.081029,62511.0,62510.0,0.47011183]
[1728423578870,0.12196605,62511.0,62510.0,0.47011183]
[1728423579075,0.12196605,62511.0,62510.0,0.10931183]
[1728423579372,0.12196605,62511.0,62510.0,0.47011183]
[1728423581068,0.12196605,62511.0,62510.0,0.10931183]
[1728423581276,0.12196605,62511.0,62510.0,0.47011183]
[1728423583775,0.12196605,62511.0,62510.0,0.10931183]
[1728423583971,0.12196605,62511.0,62510.0,0.47011183]
[1728423584573,0.16948402,62511.0,62510.0,0.47011183]
[1728423585578,0.12203807,62511.0,62510.0,0.47011183]
[1728423585772,0.16965152,62511.0,62510.0,0.47011183]
[1728423585973,0.081029,62511.0,62510.0,0.47011183]
[1728423593881,0.12191251,62511.0,62510.0,0.47011183]
[1728423595992,0.1693894,62511.0,62510.0,0.47011183]
[1728423600200,0.1693894,62511.0,62510.0,0.39008383]
[1728423600483,0.1693894,62511.0,62510.0,0.3608]
[1728423600484,0.24320317,62511.0,62510.0,0.3608]
[1728423600684,0.6693094,62511.0,62510.0,0.3608]
[1728423600890,1.1706045,62511.0,62509.0,0.04783227]
[1728423601084,0.080035,62507.0,62506.0,0.04783227]
[1728423601282,0.080036,62506.0,62503.0,0.06377636]
[1728423601488,0.200038,62504.0,62503.0,0.06377636]
[1728423601683,0.23,62504.0,62502.0,0.06377636]
[1728423601987,0.310038,62504.0,62503.0,0.06376127]
[1728423602382,0.310038,62504.0,62502.0,0.06376127]
[1728423602586,0.08004,62503.0,62502.0,0.06376127]
[1728423602781,0.20004,62503.0,62502.0,0.14380227]
[1728423603486,0.20004,62503.0,62502.0,0.06376127]
[1728423603887,0.20004,62503.0,62502.0,0.14380227]
[1728423604096,0.20004,62503.0,62502.0,0.15080227]
[1728423604295,0.20004,62503.0,62502.0,0.07076127]
[1728423604493,0.20004,62503.0,62502.0,0.015]
[1728423604701,0.20004,62503.0,62502.0,0.3758]
[1728423604892,0.20004,62503.0,62502.0,0.3678]
[1728423605199,0.20004,62503.0,62502.0,0.3758]
[1728423605200,0.20104,62503.0,62502.0,0.3758]
[1728423605495,0.20104,62503.0,62502.0,0.455841]
[1728423605690,0.20104,62503.0,62502.0,0.3758]
[1728423607300,0.20104,62503.0,62502.0,0.455841]
[1728423607798,0.20104,62503.0,62502.0,0.4235881]
[1728423608491,0.20104,62503.0,62502.0,0.3758]
[1728423617803,0.20104,62503.0,62502.0,0.015]
[1728423623006,0.20104,62503.0,62502.0,0.07876127]
[1728423624012,0.20104,62503.0,62502.0,0.015]
[1728423627916,0.20104,62503.0,62502.0,0.095041]
[1728423629407,0.20104,62503.0,62502.0,0.15880227]
[1728423630609,0.20104,62503.0,62502.0,0.095041]
[1728423631130,0.24146912,62503.0,62502.0,0.095041]
[1728423639017,0.20104,62503.0,62502.0,0.27813291]
[1728423640320,0.20104,62503.0,62502.0,0.17442772]
[1728423642124,0.20104,62503.0,62502.0,0.27811428]
[1728423642526,0.20104,62503.0,62502.0,0.27812345]
[1728423643225,0.20104,62503.0,62502.0,0.17442772]
[1728423643420,0.20104,62503.0,62502.0,0.27811843]
[1728423643820,0.20104,62503.0,62502.0,0.17442772]
[1728423644225,0.20104,62503.0,62502.0,0.2781128]
[1728423644923,0.20104,62503.0,62502.0,0.17442772]
[1728423645133,0.20104,62503.0,62502.0,0.27809724]
[1728423645320,0.20104,62503.0,62502.0,0.27811338]
[1728423645626,0.20104,62503.0,62502.0,0.27855014]
[1728423645824,0.20104,62503.0,62502.0,0.27852285]
[1728423646129,0.24155429,62503.0,62502.0,0.095041]
[1728423650325,0.28859017,62503.0,62502.0,0.095041]
[1728423650530,0.24155429,62503.0,62502.0,0.095041]
[1728423650829,0.28859045,62503.0,62502.0,0.095041]
[1728423651325,0.24155429,62503.0,62502.0,0.095041]
[1728423651542,0.28859768,62503.0,62502.0,0.095041]
[1728423651723,0.24155429,62503.0,62502.0,0.095041]
[1728423653232,0.20104,62503.0,62502.0,0.1987144]
[1728423656119,0.20104,62503.0,62502.0,0.19870432]
[1728423658827,0.20104,62503.0,62502.0,0.27854283]
[1728423659026,0.20104,62503.0,62502.0,0.27854421]
[1728423659327,0.20104,62503.0,62502.0,0.17488089]
[1728423660327,0.20104,62503.0,62502.0,0.27867709]
[1728423660823,0.20104,62503.0,62502.0,0.1988372]
[1728423661226,0.24151949,62503.0,62502.0,0.095041]
[1728423666544,0.2414761,62503.0,62502.0,0.095041]
[1728423668426,0.20104,62503.0,62502.0,0.19872678]
[1728423671542,0.20104,62503.0,62502.0,0.1987498]
[1728423673838,0.0074,62511.0,62510.0,0.080031]
[1728423674035,0.080025,62515.0,62514.0,0.080026]
[1728423674232,0.11,62515.0,62514.0,0.080026]
[1728423674833,0.11,62515.0,62514.0,0.27868592]
[1728423675040,0.11,62515.0,62514.0,0.3057574]
[1728423675234,0.11,62515.0,62514.0,0.30544196]
[1728423675435,0.11,62515.0,62514.0,0.78532196]
[1728423675637,0.00240026,62516.0,62515.0,0.080024]
[1728423675834,0.00240026,62516.0,62515.0,0.75853861]
[1728423676038,0.00240026,62516.0,62515.0,1.26300257]
[1728423676232,0.00240026,62516.0,62515.0,1.159904]
[1728423676943,0.00240026,62516.0,62515.0,1.161904]
[1728423677142,0.00240026,62516.0,62515.0,1.164904]
[1728423677638,0.00240026,62516.0,62515.0,1.166904]
[1728423679138,0.00240026,62516.0,62515.0,1.162904]
[1728423679440,0.00240026,62516.0,62515.0,1.169904]
[1728423680143,0.00240026,62516.0,62515.0,1.170904]
[1728423680343,0.00240026,62516.0,62515.0,1.165904]
[1728423680543,0.00340026,62516.0,62515.0,1.172904]
[1728423680734,0.00340026,62516.0,62515.0,0.566904]
[1728423680932,0.00340026,62516.0,62515.0,0.094024]
[1728423681140,0.00340026,62516.0,62515.0,0.574904]
[1728423681644,0.00240026,62516.0,62515.0,0.575904]
[1728423681937,0.00340026,62516.0,62515.0,0.575904]
[1728423682345,0.00340026,62516.0,62515.0,0.568904]
[1728423682536,0.00340026,62516.0,62515.0,0.576904]
[1728423683249,0.00340026,62516.0,62515.0,0.575904]
[1728423683447,0.00340026,62516.0,62515.0,0.574904]
[1728423683941,0.00340026,62516.0,62515.0,0.088024]
[1728423684151,0.00340026,62516.0,62515.0,0.097024]
[1728423684533,0.00340026,62516.0,62515.0,0.088024]
[1728423684738,0.00340026,62516.0,62515.0,0.096024]
[1728423685140,0.00240026,62516.0,62515.0,0.088024]
[1728423685335,0.00340026,62516.0,62515.0,0.096024]
[1728423685634,0.00340026,62516.0,62515.0,0.095024]
[1728423687255,0.00340026,62516.0,62515.0,0.816624]
[1728423692449,0.00340026,62516.0,62515.0,0.095024]
[1728423692649,0.00340026,62516.0,62515.0,0.455824]
[1728423692849,0.00340026,62516.0,62515.0,0.095024]
[1728423693154,0.00340026,62516.0,62515.0,0.455824]
[1728423697251,0.00340026,62516.0,62515.0,0.51947096]
[1728423698445,0.00340026,62516.0,62515.0,0.455824]
[1728423706766,0.00340026,62516.0,62515.0,0.68124009]
[1728423708256,0.00340026,62516.0,62515.0,0.32044009]
[1728423708463,0.00340026,62516.0,62515.0,0.68124009]
[1728423710463,0.080021,62518.0,62517.0,0.080022]
[1728423710672,0.080021,62518.0,62517.0,0.30543809]
[1728423711159,0.080021,62518.0,62517.0,0.1828596]
[1728423711652,0.080021,62518.0,62515.0,0.3758]
[1728423711653,0.180021,62518.0,62515.0,0.3758]
[1728423711854,0.080022,62517.0,62516.0,0.10285056]
[1728423712054,0.180022,62517.0,62516.0,0.10285056]
[1728423712663,0.180022,62517.0,62516.0,0.18253034]
[1728423713156,0.180022,62517.0,62516.0,0.07967978]
[1728423713557,0.080023,62516.0,62515.0,0.52050378]
[1728423713758,0.200023,62516.0,62515.0,0.63056423]
[1728423714160,0.200023,62516.0,62515.0,0.52750378]
[1728423714669,0.200023,62516.0,62515.0,0.63854936]
[1728423715163,0.200023,62516.0,62515.0,0.53550378]
[1728423715358,0.200023,62516.0,62515.0,0.455824]
[1728423715556,0.200023,62516.0,62515.0,0.63853113]
[1728423716070,0.200023,62516.0,62515.0,0.53550378]
[1728423717266,0.200023,62516.0,62515.0,0.455824]
[1728423718567,0.200023,62516.0,62515.0,0.3758]
[1728423718865,1.399903,62516.0,62515.0,0.015]
[1728423720069,1.399903,62516.0,62515.0,0.008]
[1728423720269,1.399903,62516.0,62515.0,0.011]
[1728423720971,1.402903,62516.0,62515.0,0.006]
[1728423721371,1.402903,62516.0,62508.0,0.0074]
[1728423721372,1.32488,62516.0,62508.0,0.0074]
[1728423721573,0.080033,62508.0,62505.0,0.0074]
[1728423721772,0.080037,62505.0,62504.0,0.080038]
[1728423721964,0.200037,62505.0,62504.0,0.080038]
[1728423724474,0.202037,62505.0,62504.0,0.098038]
[1728423725770,0.202037,62505.0,62504.0,0.018]
[1728423726973,0.080042,62501.0,62500.0,0.10816288]
[1728423727274,0.180042,62501.0,62500.0,0.10816288]
[1728423728466,0.180042,62501.0,62500.0,0.080044]
[1728423728666,0.181042,62501.0,62500.0,0.15775982]
[1728423729877,0.182042,62501.0,62500.0,0.16875982]
[1728423730471,0.182042,62501.0,62500.0,0.15775982]
[1728423730667,0.182042,62501.0,62500.0,0.15475982]
[1728423730875,0.182042,62501.0,62500.0,0.091044]
[1728423731175,0.182042,62501.0,62500.0,0.15475982]
[1728423731382,0.182042,62501.0,62500.0,0.091044]
[1728423735477,0.182042,62501.0,62500.0,0.13871086]
[1728423736080,0.182042,62501.0,62500.0,0.091044]
[1728423740280,0.182042,62501.0,62500.0,0.011]
[1728423743693,0.182042,62501.0,62500.0,0.07471582]
[1728423743994,0.182042,62501.0,62500.0,0.011]
[1728423744181,0.182042,62501.0,62500.0,0.07460701]
[1728423744587,0.182042,62501.0,62500.0,0.011]
[1728423745180,0.182042,62501.0,62500.0,0.07460701]
[1728423746091,0.182042,62501.0,62500.0,0.011]
[1728423749092,0.182042,62501.0,62500.0,0.09067978]
[1728423750381,0.182042,62501.0,62500.0,0.19450315]
[1728423751788,0.182042,62501.0,62500.0,0.011]
[1728423758692,0.181042,62501.0,62500.0,0.1119179]
[1728423758994,0.182042,62501.0,62500.0,0.1179179]
[1728423766099,0.182042,62501.0,62500.0,0.014]
[1728423766306,0.182042,62501.0,62500.0,0.11793772]
[1728423766710,0.182042,62501.0,62500.0,0.014]
[1728423767411,0.080049,62496.0,62495.0,0.0074]
[1728423767607,0.080054,62492.0,62491.0,0.082455]
[1728423767905,0.310054,62492.0,62491.0,0.082455]
[1728423768913,0.311054,62492.0,62491.0,0.091455]
[1728423770402,0.312054,62492.0,62491.0,0.097455]
[1728423773798,0.312054,62492.0,62491.0,0.32549804]
[1728423775112,0.312054,62492.0,62491.0,0.68629804]
[1728423775618,0.312054,62492.0,62491.0,0.56229105]
[1728423775802,0.312054,62492.0,62491.0,0.68638823]
[1728423777112,0.312054,62492.0,62491.0,0.68643578]
[1728423777513,0.312054,62492.0,62491.0,0.48229889]
[1728423777912,0.312054,62492.0,62491.0,0.60637031]
[1728423778919,0.312054,62492.0,62491.0,0.48229889]
[1728423779609,0.312054,62492.0,62491.0,0.60641869]
[1728423781917,0.312054,62492.0,62491.0,0.48229889]
[1728423782123,0.312054,62492.0,62491.0,0.3782]
[1728423782325,0.312054,62492.0,62491.0,0.48232044]
[1728423783219,0.312054,62492.0,62491.0,0.12152044]
[1728423783418,0.312054,62492.0,62491.0,0.57798085]
[1728423783718,0.312054,62492.0,62491.0,0.48232044]
[1728423784822,0.312054,62492.0,62491.0,0.60642917]
[1728423785218,0.312054,62492.0,62491.0,0.48232044]
[1728423785413,0.312054,62492.0,62491.0,0.21718601]
[1728423785617,0.312054,62492.0,62491.0,0.12152044]
[1728423786915,0.312054,62492.0,62491.0,0.21718108]
[1728423787110,0.312054,62492.0,62491.0,0.11306064]
[1728423787325,0.312054,62492.0,62491.0,0.21720823]
[1728423787525,0.312054,62492.0,62491.0,0.12154759]
[1728423787913,0.312054,62492.0,62491.0,0.21720823]
[1728423788417,0.312054,62492.0,62491.0,0.12154759]
[1728423788720,0.312054,62492.0,62491.0,0.0174]
[1728423789421,0.312054,62492.0,62491.0,0.06523984]
[1728423789921,0.312054,62492.0,62491.0,0.0174]
[1728423791526,0.312054,62492.0,62491.0,0.06524166]
[1728423792028,0.312054,62492.0,62491.0,0.0174]
[1728423793430,0.312054,62492.0,62491.0,0.0652493]
[1728423793732,0.312054,62492.0,62491.0,0.06524639]
[1728423794221,0.312054,62492.0,62491.0,0.0174]
[1728423795526,0.312054,62492.0,62491.0,0.06526]
[1728423796435,0.312054,62492.0,62491.0,0.0174]
[1728423796729,0.312054,62492.0,62491.0,0.2459221]
[1728423797517,0.312054,62492.0,62491.0,0.21739688]
[1728423797718,0.312054,62492.0,62491.0,0.1216546]
[1728423798531,0.312054,62492.0,62491.0,0.24593406]
[1728423798726,0.312054,62492.0,62491.0,0.1216546]
[1728423799633,0.312054,62492.0,62491.0,0.21739509]
[1728423799821,0.312054,62492.0,62491.0,0.1216546]
[1728423801329,0.312054,62492.0,62491.0,0.21753908]
[1728423801524,0.312054,62492.0,62491.0,0.12179826]
[1728423802335,0.312054,62492.0,62491.0,0.12182604]
[1728423803434,0.311054,62492.0,62491.0,0.11682604]
[1728423803930,0.310054,62492.0,62491.0,0.10982604]
[1728423804232,0.310054,62492.0,62491.0,0.08517109]
[1728423804435,0.310054,62492.0,62491.0,0.0054]
[1728423805728,0.310054,62492.0,62491.0,0.0044]
[1728423805927,0.791134,62492.0,62491.0,0.0044]
[1728423806522,0.790134,62492.0,62491.0,0.0044]
[1728423806827,0.793134,62492.0,62491.0,0.0024]
[1728423808730,0.793134,62492.0,62490.0,0.07977109]
[1728423808731,0.080055,62491.0,62490.0,0.07977109]
[1728423808932,0.200055,62491.0,62490.0,0.18419644]
[1728423809240,0.080056,62490.0,62486.0,0.3608]
[1728423809435,0.12,62487.0,62486.0,0.3608]
[1728423809627,0.22,62487.0,62486.0,0.46523198]
[1728423810235,0.22,62487.0,62486.0,0.5609728]
[1728423810830,0.30006,62487.0,62486.0,0.5639728]
[1728423811028,0.30006,62487.0,62486.0,0.5669728]
[1728423811932,0.30006,62487.0,62486.0,0.3668]
[1728423812132,0.30006,62487.0,62486.0,0.006]
[1728423815752,0.30006,62487.0,62486.0,0.05385127]
[1728423815938,0.30006,62487.0,62486.0,0.006]
[1728423816336,0.30006,62487.0,62486.0,0.05385127]
[1728423816633,0.32945953,62487.0,62486.0,0.05385127]
[1728423817542,0.32945953,62487.0,62486.0,0.006]
[1728423817936,0.32945953,62487.0,62486.0,0.05385127]
[1728423818841,0.32945953,62487.0,62486.0,0.006]
[1728423819435,0.32945953,62487.0,62486.0,0.06983102]
[1728423819637,0.32945953,62487.0,62486.0,0.006]
[1728423820835,0.20945953,62487.0,62486.0,0.006]
[1728423821139,0.32945953,62487.0,62486.0,0.006]
[1728423826842,0.36870244,62487.0,62486.0,0.006]
[1728423830756,0.33930291,62487.0,62486.0,0.006]
[1728423831747,0.38481132,62487.0,62486.0,0.006]
[1728423832054,0.33930291,62487.0,62486.0,0.006]
[1728423832555,0.38485348,62487.0,62486.0,0.006]
[1728423833454,0.26485348,62487.0,62486.0,0.006]
[1728423833656,0.33929722,62487.0,62486.0,0.006]
[1728423833856,0.30006,62487.0,62486.0,0.006]
[1728423840350,0.18006,62487.0,62486.0,0.006]
[1728423840553,0.30006,62487.0,62486.0,0.006]
[1728423841057,0.18006,62487.0,62486.0,0.006]
[1728423841255,0.18006,62487.0,62486.0,0.19038028]
[1728423841860,0.18006,62487.0,62486.0,0.3668]
[1728423843149,0.18006,62487.0,62486.0,0.39492505]
[1728423848666,0.18006,62487.0,62486.0,0.3668]
[1728423849061,0.18006,62487.0,62486.0,0.55108678]
[1728423850452,0.18006,62487.0,62486.0,0.3668]
[1728423850761,0.18006,62487.0,62486.0,0.006]
[1728423857566,0.21946933,62487.0,62486.0,0.006]
[1728423863071,0.21946933,62487.0,62486.0,0.3668]
[1728423863979,0.18006,62487.0,62486.0,0.55121478]
[1728423866576,0.18006,62487.0,62486.0,0.47146267]
[1728423866775,0.18006,62487.0,62486.0,0.11066267]
[1728423867376,0.18006,62487.0,62486.0,0.08592414]
[1728423867585,0.18006,62487.0,62486.0,0.19059277]
[1728423867779,0.18006,62487.0,62486.0,0.11066863]
[1728423868176,0.18006,62487.0,62486.0,0.47146863]
[1728423868783,0.18006,62487.0,62486.0,0.11066863]
[1728423869380,0.18006,62487.0,62486.0,0.55139616]
[1728423869685,0.18006,62487.0,62486.0,0.47146863]
[1728423870078,0.18006,62487.0,62486.0,0.11066863]
[1728423870278,0.18006,62487.0,62486.0,0.47146863]
[1728423870484,0.18006,62487.0,62486.0,0.11066863]
[1728423870690,0.18006,62487.0,62486.0,0.47146863]